bitfinex/quotes_ETHUSD_20250807
["timestamp","ask_amount","ask_price","bid_price","bid_amount"]
[1754552130555,0.1344,3709.9,3709.8,0.9401]
[1754552130731,0.1344,3709.9,3709.6,5.0221]
[1754552130927,0.63319737,3709.9,3709.4,4.082]
[1754552131129,0.1344,3709.5,3709.4,6.77785377]
[1754552131322,0.1344,3709.5,3709.4,4.082]
[1754552132753,0.1344,3709.5,3709.3,0.001]
[1754552133741,0.6327,3709.5,3709.3,0.001]
[1754552133923,0.33284014,3709.4,3709.3,0.001]
[1754552134662,0.83114014,3709.4,3709.3,0.001]
[1754552135135,3.52699391,3709.4,3709.3,0.001]
[1754552135323,3.88809391,3709.4,3709.3,0.001]
[1754552135728,3.88809391,3709.4,3709.1,0.001]
[1754552135729,2.69599913,3709.2,3709.1,0.001]
[1754552135961,2.69599913,3709.2,3709.0,0.001]
[1754552135962,0.36615393,3709.2,3708.6,0.001]
[1754552136123,0.1352,3708.7,3708.6,0.001]
[1754552136323,2.8315626,3708.7,3708.1,0.001]
[1754552136525,2.83192617,3708.2,3708.1,0.001]
[1754552136772,0.1352,3708.2,3708.1,0.001]
[1754552136981,0.41838561,3708.2,3708.1,0.001]
[1754552137544,0.1352,3708.2,3708.1,0.9411]
[1754552139978,0.1352,3708.2,3708.1,0.001]
[1754552140166,0.55,3708.1,3707.6,0.001]
[1754552140370,4.085,3708.0,3707.6,0.001]
[1754552140674,2.69707025,3707.8,3707.6,0.001]
[1754552141078,0.82323,3707.9,3707.6,0.4807]
[1754552141373,0.82323,3707.9,3707.7,0.4797]
[1754552141983,0.82323,3707.9,3707.6,0.4614]
[1754552142345,0.82323,3707.9,3707.6,0.9411]
[1754552142774,4.101,3707.8,3707.7,0.9401]
[1754552143174,3.0,3708.3,3707.7,0.9401]
[1754552143473,3.0,3708.3,3707.8,0.9401]
[1754552143474,4.101,3708.2,3707.8,0.9401]
[1754552143653,4.101,3708.2,3707.6,2.69809536]
[1754552143860,3.0,3708.1,3707.7,0.9401]
[1754552144042,3.0,3708.1,3707.6,0.001]
[1754552144241,3.0,3708.1,3707.8,0.9401]
[1754552146446,4.1,3708.0,3707.8,0.9401]
[1754552146985,4.1,3708.0,3707.9,0.9401]
[1754552147486,3.97975807,3708.2,3707.9,0.9401]
[1754552147688,4.1,3708.1,3708.0,0.9401]
[1754552149255,4.51,3708.1,3708.0,0.4797]
[1754552149456,4.51,3708.1,3707.8,2.69699605]
[1754552149755,4.1,3708.1,3708.0,0.4797]
[1754552150169,4.2352,3708.1,3708.0,0.4797]
[1754552150574,4.2352,3708.1,3708.0,3.62607162]
[1754552151692,4.2352,3708.1,3708.0,0.9292]
[1754552153997,4.2352,3708.1,3707.7,2.69704914]
[1754552154197,0.1352,3707.9,3707.8,3.18898782]
[1754552154360,4.2332,3707.9,3707.8,0.9415]
[1754552156000,4.2332,3707.9,3707.8,3.63851709]
[1754552157797,4.2332,3707.9,3707.8,0.9415]
[1754552158306,4.2332,3707.9,3707.8,3.18901709]
[1754552158501,4.2332,3707.9,3707.8,3.63851709]
[1754552159103,4.2332,3707.9,3707.8,0.9415]
[1754552159617,4.2332,3707.9,3707.8,3.63851709]
[1754552160218,4.2332,3707.9,3707.8,2.69701709]
[1754552160385,4.2332,3707.9,3707.8,3.63851709]
[1754552161502,4.2332,3707.9,3707.8,0.9415]
[1754552161711,4.2332,3707.9,3707.8,0.492]
[1754552162108,1.01412,3707.9,3707.6,0.001]
[1754552162284,4.2312,3707.8,3707.6,0.001]
[1754552162787,4.2312,3707.8,3707.6,2.69813573]
[1754552163018,4.2312,3707.8,3707.6,0.493]
[1754552163225,4.2312,3707.8,3707.6,0.001]
[1754552163394,0.4556,3707.7,3707.6,0.001]
[1754552163721,0.92428,3707.7,3707.6,0.001]
[1754552164292,4.17136984,3707.7,3707.6,0.001]
[1754552164608,8.62746984,3707.7,3707.6,0.001]
[1754552165185,5.56928,3707.7,3707.6,0.001]
[1754552165386,5.11868,3707.7,3707.6,0.001]
[1754552166122,5.57428,3707.7,3707.6,0.001]
[1754552166416,2.69724179,3707.5,3707.3,0.001]
[1754552166634,4.2352,3707.4,3707.3,0.001]
[1754552166836,4.6908,3707.4,3707.3,0.001]
[1754552167381,4.2352,3707.4,3707.3,0.001]
[1754552169927,4.6908,3707.4,3707.3,0.001]
[1754552170124,8.29395625,3707.4,3707.2,0.001]
[1754552170289,8.19945625,3707.4,3707.2,0.001]
[1754552170486,1.0056,3707.3,3707.2,0.001]
[1754552170687,0.55,3707.3,3707.2,0.001]
[1754552171000,1.15521482,3707.3,3707.2,0.001]
[1754552173319,5.25521482,3707.3,3707.2,0.001]
[1754552174525,8.40819566,3707.3,3707.2,0.001]
[1754552174728,0.55,3707.2,3706.8,0.001]
[1754552174925,0.55,3707.0,3706.8,0.001]
[1754552175089,4.649,3706.9,3706.8,0.001]
[1754552175290,5.1046,3706.9,3706.8,0.001]
[1754552175492,5.2398,3706.9,3706.8,0.001]
[1754552175691,4.7842,3706.9,3706.8,0.001]
[1754552175893,5.63245107,3706.9,3706.8,0.001]
[1754552178392,1.53345107,3706.9,3706.8,0.001]
[1754552178731,5.63245107,3706.9,3706.8,0.9425]
[1754552179428,5.63245107,3706.9,3706.8,0.001]
[1754552179834,6.08805107,3706.9,3706.8,0.001]
[1754552180021,5.63245107,3706.9,3706.8,0.001]
[1754552181797,1.53345107,3706.9,3706.8,0.9296]
[1754552182016,4.2332,3706.9,3706.8,0.9296]
[1754552182215,4.2332,3706.9,3706.8,3.62734468]
[1754552185052,0.1352,3706.9,3706.8,3.62734468]
[1754552185255,4.2342,3706.9,3706.8,3.62734468]
[1754552188758,4.2342,3706.9,3706.8,0.001]
[1754552189436,4.2342,3706.9,3706.8,2.69874468]
[1754552189664,4.2342,3706.9,3706.8,3.62734468]
[1754552189963,0.1352,3706.9,3706.8,3.62734468]
[1754552190126,4.2322,3706.9,3706.8,3.62734468]
[1754552191624,4.2312,3706.9,3706.8,3.62734468]
[1754552193480,4.2312,3706.9,3706.8,0.001]
[1754552193667,4.63061398,3706.9,3706.8,0.001]
[1754552193862,4.2312,3706.9,3706.8,0.001]
[1754552194068,4.2312,3706.9,3706.8,2.69874468]
[1754552194264,4.2312,3706.9,3706.8,3.15534468]
[1754552194573,0.1352,3706.9,3706.8,3.62734468]
[1754552194885,4.2312,3706.9,3706.8,3.62734468]
[1754552196791,4.2312,3706.9,3706.8,0.001]
[1754552197351,4.65432,3706.9,3706.8,0.001]
[1754552197793,5.14912,3706.9,3706.8,0.001]
[1754552198357,1.05312,3706.9,3706.8,0.001]
[1754552198559,4.2302,3706.9,3706.8,0.001]
[1754552199190,4.2302,3706.9,3706.8,2.69874468]
[1754552199407,4.2302,3706.9,3706.8,3.15534468]
[1754552199582,4.2302,3706.9,3706.8,2.69874468]
[1754552199896,0.1352,3706.9,3706.8,3.62734468]
[1754552200055,4.2302,3706.9,3706.8,3.62734468]
[1754552200760,4.2302,3706.9,3706.8,0.4576]
[1754552200962,4.2302,3706.9,3706.8,0.001]
[1754552202315,5.7791078,3706.9,3706.8,0.001]
[1754552202613,6.03159855,3706.9,3706.8,0.001]
[1754552203772,5.53679855,3706.9,3706.8,0.001]
[1754552203974,6.03159855,3706.9,3706.8,0.001]
[1754552204174,6.84254855,3706.9,3706.8,0.001]
[1754552204580,6.34774855,3706.9,3706.8,0.001]
[1754552205066,6.34774855,3706.9,3706.8,0.4576]
[1754552205400,6.34674855,3706.9,3706.8,0.4576]
[1754552205598,2.25274855,3706.9,3706.8,0.001]
[1754552205800,6.34574855,3706.9,3706.8,0.001]
[1754552206007,6.84054855,3706.9,3706.8,0.001]
[1754552206295,6.34574855,3706.9,3706.8,0.001]
[1754552206594,2.25274855,3706.9,3706.8,0.001]
[1754552206803,6.34574855,3706.9,3706.8,0.001]
[1754552207865,6.34582966,3706.9,3706.8,0.001]
[1754552211255,9.04350156,3706.9,3706.8,0.001]
[1754552211411,9.50250156,3706.9,3706.8,0.001]
[1754552211812,6.80482966,3706.9,3706.8,0.001]
[1754552212043,9.50250156,3706.9,3706.8,0.001]
[1754552212271,6.80482966,3706.9,3706.8,0.001]
[1754552212548,6.34582966,3706.9,3706.8,0.001]
[1754552212724,6.80482966,3706.9,3706.8,0.001]
[1754552213324,9.50250156,3706.9,3706.8,0.001]
[1754552213724,6.80482966,3706.9,3706.8,0.001]
[1754552213952,6.34582966,3706.9,3706.8,0.001]
[1754552214127,6.34382966,3706.9,3706.8,0.001]
[1754552214327,2.25282966,3706.9,3706.8,0.001]
[1754552214515,6.34382966,3706.9,3706.8,0.001]
[1754552214855,2.25282966,3706.9,3706.8,0.001]
[1754552215062,6.34282966,3706.9,3706.8,0.001]
[1754552215361,5.79282966,3706.9,3706.8,0.9621]
[1754552215565,4.98187966,3706.9,3706.8,0.9621]
[1754552216214,4.98187966,3706.9,3706.8,0.4993]
[1754552216215,0.89187966,3706.9,3706.8,0.4993]
[1754552216461,4.47777186,3706.9,3706.8,0.001]
[1754552216981,4.97607186,3706.9,3706.8,0.001]
[1754552218359,7.67374376,3706.9,3706.8,0.001]
[1754552218572,4.97607186,3706.9,3706.8,0.001]
[1754552220156,5.52607186,3706.9,3706.8,0.001]
[1754552220318,6.34863333,3706.9,3706.8,0.4993]
[1754552220518,6.34863333,3706.9,3706.8,0.001]
[1754552220719,6.34863333,3706.9,3706.8,0.4993]
[1754552221164,6.34863333,3706.9,3706.8,0.001]
[1754552221363,9.04630523,3706.9,3706.8,0.001]
[1754552221919,9.50530523,3706.9,3706.8,0.001]
[1754552222448,42.86640523,3706.9,3706.8,0.001]
[1754552225351,38.77640523,3706.9,3706.8,0.001]
[1754552225551,42.86840523,3706.9,3706.8,0.001]
[1754552226832,38.41530523,3706.9,3706.8,0.001]
[1754552227064,42.50730523,3706.9,3706.8,0.001]
[1754552227277,42.50742263,3706.9,3706.8,0.001]
[1754552228985,37.95642263,3706.9,3706.8,0.001]
[1754552229278,42.04942263,3706.9,3706.8,0.001]
[1754552229486,12.04942263,3706.9,3706.8,0.001]
[1754552229781,11.50042263,3706.9,3706.8,0.9621]
[1754552230249,12.05042263,3706.9,3706.8,0.9621]
[1754552230974,7.95642263,3706.9,3706.8,0.9621]
[1754552231273,12.05042263,3706.9,3706.8,0.9621]
[1754552231583,12.05042263,3706.9,3706.8,0.001]
[1754552232445,42.50942263,3706.9,3706.8,0.001]
[1754552233571,42.05042263,3706.9,3706.8,0.001]
[1754552233938,12.05042263,3706.9,3706.8,0.001]
[1754552234162,12.50942263,3706.9,3706.8,0.001]
[1754552235247,12.05042263,3706.9,3706.8,0.001]
[1754552237974,7.95642263,3706.9,3706.8,0.4993]
[1754552238285,12.04942263,3706.9,3706.8,0.9621]
[1754552238706,7.95642263,3706.9,3706.8,0.9621]
[1754552239004,12.04842263,3706.9,3706.8,0.9621]
[1754552241706,42.04842263,3706.9,3706.8,0.001]
[1754552241915,42.51402263,3706.9,3706.8,0.001]
[1754552244167,42.04842263,3706.9,3706.8,0.001]
[1754552244500,12.04742263,3706.9,3706.8,0.001]
[1754552244706,12.04642263,3706.9,3706.8,0.001]
[1754552245770,37.95642263,3706.9,3706.8,0.001]
[1754552245985,9.34875073,3706.9,3706.8,0.8895]
[1754552246180,4.43618926,3706.9,3706.8,0.8895]
[1754552246409,8.52618926,3706.9,3706.8,0.8895]
[1754552246609,8.02788926,3706.9,3706.8,0.8895]
[1754552247817,8.02787039,3706.9,3706.8,0.8895]
[1754552248981,3.93787039,3706.9,3706.8,0.8895]
[1754552249178,0.25267039,3706.9,3706.8,3.58724468]
[1754552249419,0.002,3707.2,3707.1,2.69752636]
[1754552249584,4.096,3707.2,3707.1,2.69752636]
[1754552249786,4.48399523,3707.2,3707.1,3.58602636]
[1754552250010,4.2312,3707.2,3707.1,3.58602636]
[1754552251321,0.1372,3707.2,3707.1,3.58602636]
[1754552251518,4.2312,3707.2,3707.1,3.58602636]
[1754552256043,0.1372,3707.2,3707.1,3.58602636]
[1754552256350,4.2302,3707.2,3707.1,3.58602636]
[1754552256513,4.2302,3707.2,3707.1,0.8885]
[1754552256712,4.2302,3707.2,3707.1,3.58602636]
[1754552260955,0.1372,3707.2,3707.1,3.58602636]
[1754552261272,0.002,3707.2,3707.1,13.35934155]
[1754552261623,0.002,3707.2,3707.1,13.49454155]
[1754552261824,0.002,3707.2,3707.1,4.079929]
[1754552264563,0.002,3707.2,3707.1,13.49454155]
[1754552264750,0.002,3707.2,3707.1,4.079929]
[1754552265876,0.002,3707.2,3707.1,4.10690426]
[1754552266771,0.002,3707.2,3707.1,4.079929]
[1754552270675,0.002,3707.2,3707.1,8.170929]
[1754552271366,0.002,3707.3,3707.2,2.6974536]
[1754552271566,0.002,3707.3,3707.2,4.93243242]
[1754552278192,0.002,3707.3,3707.2,3.99273242]
[1754552278415,0.002,3707.3,3707.2,2.6974536]
[1754552280502,0.5802,3707.3,3707.2,2.6974536]
[1754552280804,0.4812,3707.3,3707.2,2.6974536]
[1754552281006,0.002,3707.3,3707.2,2.6974536]
[1754552282807,0.002,3707.3,3707.2,3.6371536]
[1754552283811,0.002,3707.3,3707.2,13.05176615]
[1754552287376,0.002,3707.3,3707.2,7.7241536]
[1754552287612,0.002,3707.3,3707.2,2.6974536]
[1754552288111,0.4812,3707.3,3706.9,2.6976719]
[1754552288298,0.4812,3707.3,3707.1,2.69752636]
[1754552288299,0.4963,3707.2,3707.1,2.69752636]
[1754552288503,0.9755,3707.2,3707.1,2.69752636]
[1754552290502,0.6144,3707.2,3707.1,2.69752636]
[1754552290707,0.6144,3707.2,3706.8,2.6987301]
[1754552290708,0.9755,3707.2,3706.8,2.6987301]
[1754552290941,0.4792,3707.1,3706.8,2.6987301]
[1754552291122,0.4963,3707.2,3706.9,2.6976719]
[1754552291421,0.4963,3707.2,3706.8,2.6987301]
[1754552291422,0.8403,3707.1,3706.8,0.001]
[1754552291715,0.4792,3707.1,3706.8,0.001]
[1754552291886,0.1352,3706.9,3706.8,2.69874468]
[1754552295826,0.6144,3706.9,3706.8,2.69874468]
[1754552296114,0.1352,3706.9,3706.8,0.001]
[1754552296329,0.9755,3706.9,3706.8,0.001]
[1754552297232,0.6144,3706.9,3706.8,0.001]
[1754552297534,0.6144,3706.9,3706.8,2.69874468]
[1754552298633,0.6144,3706.9,3706.8,0.001]
[1754552299915,0.6144,3706.9,3706.8,2.69874468]
[1754552300300,0.6144,3706.9,3706.8,0.001]
[1754552300803,0.1352,3706.9,3706.8,2.69874468]
[1754552300988,0.1352,3706.9,3706.8,3.15584468]
[1754552301194,0.1352,3706.9,3706.8,3.60264468]
[1754552302491,0.1352,3706.9,3706.8,3.15584468]
[1754552302691,0.1352,3706.9,3706.8,3.60264468]
[1754552304830,0.1352,3706.9,3706.8,3.15584468]
[1754552305336,0.1352,3706.9,3706.8,3.60264468]
[1754552305738,0.1352,3706.9,3706.8,2.69874468]
[1754552306697,0.1352,3706.9,3706.8,0.001]
[1754552306909,0.6078,3706.9,3706.8,0.001]
[1754552307532,1.03733114,3706.9,3706.8,0.001]
[1754552308507,0.7068,3706.9,3706.8,0.001]
[1754552308703,1.2568,3706.9,3706.8,0.001]
[1754552310851,1.1578,3706.9,3706.8,0.001]
[1754552311014,33.9544719,3706.9,3706.8,0.001]
[1754552311349,36.9544719,3706.9,3706.8,0.001]
[1754552311650,39.68313376,3706.9,3706.8,0.001]
[1754552312226,43.77113376,3706.9,3706.8,0.001]
[1754552313546,39.68313376,3706.9,3706.8,0.001]
[1754552313844,43.77113376,3706.9,3706.8,0.001]
[1754552318030,39.68313376,3706.9,3706.8,0.001]
[1754552318217,43.77513376,3706.9,3706.8,0.001]
[1754552318420,43.88327776,3706.9,3706.8,0.001]
[1754552320920,43.78427776,3706.9,3706.8,0.001]
[1754552321639,44.14537776,3706.9,3706.8,0.001]
[1754552322153,39.21967776,3706.9,3706.8,0.001]
[1754552322348,43.31067776,3706.9,3706.8,0.001]
[1754552323349,39.21967776,3706.9,3706.8,0.001]
[1754552323526,43.30967776,3706.9,3706.8,0.001]
[1754552323729,9.21967776,3706.9,3706.8,0.001]
[1754552324058,10.5810159,3706.9,3706.8,0.9049]
[1754552324752,7.884344,3706.9,3706.8,0.9049]
[1754552325256,10.5820159,3706.9,3706.8,0.9049]
[1754552325418,3.793344,3706.9,3706.8,0.9049]
[1754552325620,7.7762,3706.9,3706.8,0.9049]
[1754552327443,8.90467876,3706.9,3706.8,0.001]
[1754552328501,11.60235066,3706.9,3706.8,0.001]
[1754552328823,9.36177876,3706.9,3706.8,0.001]
[1754552329331,12.05945066,3706.9,3706.8,0.001]
[1754552333368,9.36177876,3706.9,3706.8,0.001]
[1754552333666,12.05945066,3706.9,3706.8,0.001]
[1754552334852,12.52095066,3706.9,3706.8,0.001]
[1754552335546,12.88205066,3706.9,3706.8,0.001]
[1754552335744,42.88205066,3706.9,3706.8,0.001]
[1754552339842,6.24774468,3706.8,3706.7,1e-08]
[1754552340141,39.79900654,3706.8,3706.7,1e-08]
[1754552340573,39.90716454,3706.8,3706.7,1e-08]
[1754552340734,9.90716454,3706.8,3706.7,1e-08]
[1754552340930,39.90716454,3706.8,3706.7,1e-08]
[1754552343372,6.24789024,3706.6,3706.5,1e-08]
[1754552343537,40.47409024,3706.6,3706.5,1e-08]
[1754552343866,41.29669024,3706.6,3706.5,1e-08]
[1754552344185,42.04114366,3706.6,3706.5,1e-08]
[1754552345142,6.24796303,3706.5,3706.3,1e-08]
[1754552345447,10.36966186,3706.4,3706.3,1e-08]
[1754552345651,44.34092475,3706.4,3706.3,1e-08]
[1754552345852,6.24825422,3706.1,3706.0,1e-08]
[1754552346067,40.47545422,3706.1,3706.0,1e-08]
[1754552346272,41.29805422,3706.1,3706.0,1e-08]
[1754552346441,37.92150768,3706.1,3706.0,1e-08]
[1754552346640,42.01350768,3706.1,3706.0,1e-08]
[1754552347064,42.91070768,3706.1,3706.0,1e-08]
[1754552347473,42.44920768,3706.1,3706.0,1e-08]
[1754552347783,38.35720768,3706.1,3706.0,1e-08]
[1754552347945,42.45120768,3706.1,3706.0,0.91340001]
[1754552348146,42.45120768,3706.1,3706.0,1e-08]
[1754552348478,42.91270768,3706.1,3706.0,1e-08]
[1754552348850,42.45120768,3706.1,3706.0,1e-08]
[1754552351180,42.45120768,3706.1,3706.0,0.47770001]
[1754552351759,38.35720768,3706.1,3706.0,1e-08]
[1754552352059,42.45020768,3706.1,3706.0,0.47770001]
[1754552352573,42.45020768,3706.1,3706.0,1e-08]
[1754552353778,42.45020768,3706.1,3706.0,0.91340001]
[1754552354089,42.44920768,3706.1,3706.0,0.91340001]
[1754552355486,42.44920768,3706.1,3706.0,1e-08]
[1754552357477,42.44920768,3706.1,3706.0,0.91340001]
[1754552358563,38.35720768,3706.1,3706.0,0.91340001]
[1754552358766,42.44820768,3706.1,3706.0,0.91340001]
[1754552359556,12.44820768,3706.1,3706.0,0.91340001]
[1754552359889,12.44820768,3706.1,3706.0,1e-08]
[1754552360086,42.44820768,3706.1,3706.0,1e-08]
[1754552360692,42.44820768,3706.1,3706.0,0.47660001]
[1754552361191,42.44820768,3706.1,3706.0,1e-08]
[1754552364510,38.35720768,3706.1,3706.0,1e-08]
[1754552364719,38.35720768,3706.1,3706.0,0.90960001]
[1754552364720,42.44720768,3706.1,3706.0,0.90960001]
[1754552366301,42.44720768,3706.1,3706.0,1e-08]
[1754552368075,42.92140768,3706.1,3706.0,1e-08]
[1754552368570,3.24854548,3705.7,3705.6,0.001]
[1754552368771,7.47374548,3705.7,3705.6,0.001]
[1754552368992,7.47374548,3705.7,3705.6,0.9106]
[1754552369207,7.47374548,3705.7,3705.6,0.001]
[1754552369611,8.28509848,3705.7,3705.6,0.001]
[1754552369784,39.95692339,3705.7,3705.6,0.001]
[1754552369986,42.95692339,3705.7,3705.6,1e-08]
[1754552370317,43.88958573,3705.7,3705.6,1e-08]
[1754552370527,44.25068573,3705.7,3705.6,1e-08]
[1754552371577,44.45761369,3705.7,3705.6,1e-08]
[1754552372503,44.77309424,3705.7,3705.6,1e-08]
[1754552372725,51.25909424,3705.7,3705.6,1e-08]
[1754552374329,47.16909424,3705.7,3705.6,1e-08]
[1754552374530,50.11031369,3705.7,3705.6,1e-08]
[1754552375413,50.58451369,3705.7,3705.6,1e-08]
[1754552375797,46.01831369,3705.7,3705.6,1e-08]
[1754552375997,49.78945434,3705.7,3705.6,1e-08]
[1754552376241,50.26365434,3705.7,3705.6,1e-08]
[1754552376906,50.62475434,3705.7,3705.6,1e-08]
[1754552378112,50.26365434,3705.7,3705.6,1e-08]
[1754552378511,50.26465434,3705.7,3705.6,1e-08]
[1754552379514,45.69745434,3705.7,3705.6,1e-08]
[1754552379828,45.69745434,3705.7,3705.6,0.90960001]
[1754552379829,49.79045434,3705.7,3705.6,0.90960001]
[1754552380157,50.26465434,3705.7,3705.6,1e-08]
[1754552380714,49.79045434,3705.7,3705.6,1e-08]
[1754552381663,49.79045434,3705.7,3705.6,0.47660001]
[1754552382232,49.79045434,3705.7,3705.6,1e-08]
[1754552382966,45.69745434,3705.7,3705.6,1e-08]
[1754552383133,49.79145434,3705.7,3705.6,1e-08]
[1754552384353,39.21145434,3705.7,3705.6,1e-08]
[1754552384553,49.79145434,3705.7,3705.6,1e-08]
[1754552385165,49.79345434,3705.7,3705.6,1e-08]
[1754552386333,19.79345434,3705.7,3705.6,1e-08]
[1754552386742,49.79345434,3705.7,3705.6,1e-08]
[1754552389367,19.79345434,3705.7,3705.6,1e-08]
[1754552389974,49.79345434,3705.7,3705.6,1e-08]
[1754552392371,39.21345434,3705.7,3705.6,1e-08]
[1754552392572,49.79145434,3705.7,3705.6,1e-08]
[1754552394479,56.97145434,3705.7,3705.6,1e-08]
[1754552396477,16.39345434,3705.7,3705.6,1e-08]
[1754552396681,20.48445434,3705.7,3705.6,1e-08]
[1754552396977,50.48445434,3705.7,3705.6,1e-08]
[1754552397141,50.48445434,3705.7,3705.6,0.46220001]
[1754552397341,50.48445434,3705.7,3705.6,0.91200001]
[1754552397543,50.48445434,3705.7,3705.6,0.46220001]
[1754552397744,45.50132638,3705.7,3705.6,0.91200001]
[1754552397983,47.91809848,3705.7,3705.6,0.91200001]
[1754552398180,48.46809848,3705.7,3705.6,0.91200001]
[1754552398379,45.46809848,3705.7,3705.6,0.91200001]
[1754552398565,48.46809848,3705.7,3705.6,0.91200001]
[1754552400249,41.28809848,3705.7,3705.6,0.91200001]
[1754552401094,41.28809848,3705.7,3705.6,1e-08]
[1754552402253,42.38523838,3705.7,3705.6,1e-08]
[1754552402495,45.11390024,3705.7,3705.6,1e-08]
[1754552402787,44.79841969,3705.7,3705.6,1e-08]
[1754552407494,44.33761969,3705.7,3705.6,1e-08]
[1754552407876,45.11390024,3705.7,3705.6,1e-08]
[1754552408071,3.2488368,3705.3,3705.2,1e-08]
[1754552408287,43.20369866,3705.3,3705.2,1e-08]
[1754552408668,44.01527366,3705.3,3705.2,1e-08]
[1754552410262,44.01527366,3705.3,3705.2,0.46220001]
[1754552410601,6.24898248,3705.1,3705.0,10.4498]
[1754552410777,43.20384434,3705.1,3705.0,10.4498]
[1754552411463,44.01542034,3705.1,3705.0,10.4498]
[1754552412569,39.92442034,3705.1,3705.0,10.4498]
[1754552412770,44.01542034,3705.1,3705.0,10.912]
[1754552413283,14.01542034,3705.1,3705.0,10.912]
[1754552413897,37.22543786,3705.1,3705.0,10.912]
[1754552414109,5.037776,3705.1,3705.0,10.912]
[1754552414272,0.946776,3705.1,3705.0,10.912]
[1754552414471,4.2262,3705.1,3705.0,10.912]
[1754552414779,5.037573,3705.1,3705.0,10.912]
[1754552415374,8.587573,3705.1,3705.0,10.912]
[1754552415690,1.496573,3705.1,3705.0,10.912]
[1754552415889,0.6852,3705.1,3705.0,10.912]
[1754552416090,4.7762,3705.1,3705.0,10.912]
[1754552418421,0.6852,3705.1,3705.0,10.912]
[1754552418569,0.1352,3705.1,3705.0,14.97228211]
[1754552418768,4.2262,3705.1,3705.0,14.97228211]
[1754552421510,0.1352,3705.1,3705.0,14.97228211]
[1754552421694,5.037573,3705.2,3705.1,2.69898248]
[1754552422026,4.2262,3705.2,3705.1,3.92773716]
[1754552422310,0.1352,3705.2,3705.1,3.92773716]
[1754552422521,0.002,3705.7,3705.6,2.6986183]
[1754552422725,4.093,3705.7,3705.6,2.6986183]
[1754552423019,4.2282,3705.7,3705.6,3.6346183]
[1754552423919,0.002,3705.7,3705.6,4.26795149]
[1754552424081,4.2282,3705.7,3705.6,4.26795149]
[1754552424283,0.1372,3705.7,3705.6,4.26795149]
[1754552424524,0.002,3705.7,3705.6,13.68256404]
[1754552425519,0.002,3705.7,3705.6,4.26795149]
[1754552428600,0.002,3705.7,3705.6,3.6346183]
[1754552428793,0.1372,3705.7,3705.6,3.6346183]
[1754552432823,0.002,3705.7,3705.6,3.6346183]
[1754552436298,0.002,3705.7,3705.6,13.04923085]
[1754552436636,0.002,3705.7,3705.6,17.27443085]
[1754552436927,1e-08,3705.7,3705.6,21.50045763]
[1754552437127,1e-08,3705.7,3705.6,21.63565763]
[1754552437294,0.002,3706.9,3706.0,2.69832703]
[1754552437489,0.002,3706.9,3706.4,12.11264837]
[1754552437490,0.1352,3706.7,3706.4,12.11264837]
[1754552437796,0.1352,3706.8,3706.4,12.11264837]
[1754552437998,0.1352,3706.8,3706.4,13.04864837]
[1754552438306,0.1352,3706.8,3706.4,13.34140305]
[1754552439452,0.002,3706.9,3706.4,13.34140305]
[1754552439939,1e-08,3706.5,3706.4,16.34140305]
[1754552447053,1e-08,3706.5,3706.4,13.34140305]
[1754552451659,1e-08,3706.5,3706.4,2.9907905]
[1754552451832,0.46150001,3706.5,3706.4,6.78603582]
[1754552455795,0.46150001,3706.5,3706.4,2.69803582]
[1754552458879,1e-08,3706.5,3706.4,2.69803582]
[1754552459179,1e-08,3706.5,3706.4,3.14843582]
[1754552459571,1e-08,3706.5,3706.4,3.64093582]
[1754552459974,1e-08,3706.5,3706.4,3.14843582]
[1754552460167,1e-08,3706.5,3706.4,2.69803582]
[1754552460375,0.46150001,3706.5,3706.4,2.69803582]
[1754552461477,1e-08,3706.5,3706.4,2.69803582]
[1754552461685,1e-08,3706.5,3706.4,3.14843582]
[1754552462257,0.46150001,3706.5,3706.4,2.69803582]
[1754552468601,0.46150001,3706.5,3706.1,2.69825422]
[1754552468778,0.1352,3706.3,3706.1,2.69825422]
[1754552468978,0.4615,3706.2,3706.0,2.70831279]
[1754552469400,0.8226,3706.2,3706.0,0.01]
[1754552469583,0.1352,3706.1,3706.0,0.01]
[1754552469965,0.5967,3706.1,3706.0,2.70832703]
[1754552471799,0.5967,3706.1,3706.0,2.70932703]
[1754552475202,0.1352,3706.1,3706.0,3.65222703]
[1754552475704,1e-08,3706.5,3706.4,2.69803582]
[1754552476093,0.13520001,3706.5,3706.4,2.69803582]
[1754552476292,0.13520001,3706.5,3706.3,2.69809244]
[1754552476487,0.1352,3706.2,3706.1,3.14861028]
[1754552479227,0.1352,3706.2,3706.1,3.64111028]
[1754552480296,0.1352,3706.2,3706.1,3.14861028]
[1754552482307,0.1352,3706.2,3706.1,3.61581028]
[1754552484438,0.6326,3706.2,3706.1,2.69821028]
[1754552486373,0.1352,3706.2,3706.1,2.69821028]
[1754552486639,0.1352,3706.2,3706.1,3.13291028]
[1754552488752,0.1352,3706.2,3706.1,3.61581028]
[1754552489455,0.1352,3706.2,3706.1,3.13291028]
[1754552490521,0.1352,3706.2,3706.0,0.011]
[1754552490726,0.4974,3706.1,3706.0,0.011]
[1754552495325,1.21684231,3706.1,3706.0,0.011]
[1754552495959,0.8585,3706.1,3706.0,0.011]
[1754552496272,1.1113568,3706.1,3706.0,0.011]
[1754552497325,1.11136788,3706.1,3706.0,0.011]
[1754552497754,0.75026788,3706.1,3706.0,0.011]
[1754552497961,0.8585,3706.1,3706.0,0.011]
[1754552498161,1.55353631,3706.1,3706.0,0.011]
[1754552498388,1.91463631,3706.1,3706.0,0.011]
[1754552499488,1.55353631,3706.1,3706.0,0.011]
[1754552500492,4.25179053,3706.1,3706.0,0.011]
[1754552501048,1.55353631,3706.1,3706.0,0.011]
[1754552501251,4.25179053,3706.1,3706.0,0.011]